fUSD/lending_fUSD_20260601
["ID","MTS","AMOUNT","RATE_DAILY","PERIOD"]
[423703758,1780318245000,-2113.19975611,0.00016545,2]
[423703748,1780318245000,-2113.19975611,0.00016384,2]
[423703753,1780318245000,-746.619018,0.00016438,2]
[423703752,1780318245000,-1346.3,0.00016438,2]
[423703749,1780318245000,-2113.19975611,0.00016392,2]
[423703746,1780318245000,-2113.19975611,0.00016298,2]
[423703750,1780318245000,-1100.02,0.000164,2]
[423703755,1780318245000,-746.619018,0.00016438,2]
[423703756,1780318245000,-746.619018,0.00016438,2]
[423703760,1780318245000,-166.66,0.00016607,2]
[423703751,1780318245000,-2113.19975611,0.00016428,2]
[423703771,1780318245000,-2113.19975611,0.00016869,2]
[423703812,1780318246000,-741.83,0.0001872,2]
[423703816,1780318246000,-487.03657759,0.00018758,2]
[423703808,1780318246000,-300.0,0.00018719,2]
[423703809,1780318246000,-300.0,0.00018719,2]
[423703807,1780318246000,-30000.0,0.00018548,2]
[423703802,1780318246000,-1100.02,0.000183,2]
[423703797,1780318246000,-166.66,0.00017703,2]
[423703798,1780318246000,-500.0,0.00017922,5]
[423703811,1780318246000,-355.02,0.0001872,2]
[423703818,1780318246000,-1050.0,0.00018964,2]
[423703815,1780318246000,-16865.34,0.0001872,2]
[423703813,1780318246000,-1428.04,0.0001872,2]
[423703814,1780318246000,-1924.72,0.0001872,2]
[423703819,1780318246000,-450.0,0.00018964,7]
[423703817,1780318246000,-166.66,0.000188,2]
[423703820,1780318246000,-2383.135077,0.00018986,2]
[423703822,1780318246000,-2383.135077,0.00018986,2]
[423703821,1780318246000,-2383.135077,0.00018986,2]
[423703823,1780318246000,-2383.135077,0.00018986,2]
[423703825,1780318246000,-300.0,0.00019038,2]
[423703799,1780318246000,-1170.74505945,0.00018,2]
[423703810,1780318246000,-300.0,0.00018719,2]
[423703801,1780318246000,-166.66,0.00018251,2]
[423703785,1780318246000,-2113.19975611,0.00017088,2]
[423703806,1780318246000,-300.0,0.00018547,2]
[423703824,1780318246000,-2226.90229636,0.00019,2]
[423703781,1780318246000,-2113.19975611,0.00016956,2]
[423703779,1780318246000,-2113.19975611,0.00016911,2]
[423703782,1780318246000,-2113.19975611,0.00016965,2]
[423703783,1780318246000,-2113.19975611,0.00017037,2]
[423703780,1780318246000,-2113.19975611,0.00016939,2]
[423703777,1780318246000,-200.0,0.000169,30]
[423703778,1780318246000,-245.58979122,0.000169,30]
[423703784,1780318246000,-2113.19975611,0.00017045,2]
[423703786,1780318246000,-2113.19975611,0.00017119,2]
[423703804,1780318246000,-300.0,0.00018547,2]
[423703787,1780318246000,-166.66,0.00017155,2]
[423703790,1780318246000,-2113.19975611,0.00017179,2]
[423703789,1780318246000,-2113.19975611,0.0001717,2]
[423703795,1780318246000,-200.0,0.00017344,2]
[423703792,1780318246000,-2113.19975611,0.00017267,2]
[423703793,1780318246000,-2113.19975611,0.00017289,2]
[423703791,1780318246000,-2113.19975611,0.00017266,2]
[423703796,1780318246000,-957.69,0.000175,7]
[423703805,1780318246000,-300.0,0.00018547,2]
[423703800,1780318246000,-350.0,0.00018,2]
[423703803,1780318246000,-1346.3,0.0001841,2]
[423703788,1780318246000,-2113.19975611,0.00017158,2]
[423703831,1780318246000,-1227.873,0.00019039,2]
[423703852,1780318246000,-151.0,0.0001936,2]
[423703830,1780318246000,-3551.0,0.00019039,2]
[423703873,1780318246000,-1060.36861277,0.0002,2]
[423703856,1780318246000,-151.0,0.0001936,2]
[423703857,1780318246000,-151.0,0.0001936,2]
[423703858,1780318246000,-151.0,0.0001936,2]
[423703859,1780318246000,-151.0,0.0001936,2]
[423703860,1780318246000,-151.0,0.0001936,2]
[423703861,1780318246000,-151.0,0.0001936,2]
[423703866,1780318246000,-314.99174282,0.00019999,2]
[423703865,1780318246000,-300.0,0.00019999,2]
[423703862,1780318246000,-805.0,0.00019452,2]
[423703863,1780318246000,-200.0,0.00019807,2]
[423703870,1780318246000,-260.00122862,0.0002,2]
[423703864,1780318246000,-157.09,0.00019941,2]
[423703871,1780318246000,-1313.64007294,0.0002,2]
[423703867,1780318246000,-2000.0,0.0002,7]
[423703869,1780318246000,-5287.0021951,0.0002,2]
[423703868,1780318246000,-270.13475721,0.0002,2]
[423703874,1780318246000,-2660.12973402,0.0002,2]
[423703875,1780318246000,-866.0,0.0002,2]
[423703876,1780318246000,-434.0,0.0002,2]
[423703826,1780318246000,-300.0,0.00019038,2]
[423703849,1780318246000,-151.0,0.0001936,2]
[423703847,1780318246000,-151.0,0.0001936,2]
[423703872,1780318246000,-200.0,0.0002,2]
[423703855,1780318246000,-151.0,0.0001936,2]
[423703829,1780318246000,-929.0,0.00019039,2]
[423703846,1780318246000,-151.0,0.0001936,2]
[423703827,1780318246000,-300.0,0.00019038,2]
[423703828,1780318246000,-165.205,0.00019039,2]
[423703833,1780318246000,-150.0,0.00019039,2]
[423703835,1780318246000,-875.42075574,0.00019078,2]
[423703834,1780318246000,-150.0,0.00019039,2]
[423703837,1780318246000,-328.645014,0.00019178,2]
[423703841,1780318246000,-166.66,0.00019348,2]
[423703838,1780318246000,-328.645014,0.00019178,2]
[423703840,1780318246000,-150.0,0.0001919,3]
[423703832,1780318246000,-1273.0,0.00019039,2]
[423703842,1780318246000,-151.0,0.0001936,2]
[423703839,1780318246000,-328.645014,0.00019178,2]
[423703844,1780318246000,-151.0,0.0001936,2]
[423703843,1780318246000,-151.0,0.0001936,2]
[423703854,1780318246000,-151.0,0.0001936,2]
[423703851,1780318246000,-151.0,0.0001936,2]
[423703848,1780318246000,-151.0,0.0001936,2]
[423703845,1780318246000,-151.0,0.0001936,2]
[423703836,1780318246000,-328.645014,0.00019178,2]
[423703850,1780318246000,-151.0,0.0001936,2]
[423703853,1780318246000,-151.0,0.0001936,2]
[423703908,1780318247000,-3416.64330529,0.00021,7]
[423703918,1780318247000,-5340.24410023,0.00021,2]
[423703916,1780318247000,-533.0,0.00021,2]
[423703915,1780318247000,-1934.0,0.00021,2]
[423703909,1780318247000,-866.0,0.00021,2]
[423703910,1780318247000,-434.0,0.00021,2]
[423703911,1780318247000,-1828.0,0.00021,2]
[423703912,1780318247000,-1755.0,0.00021,2]
[423703914,1780318247000,-317.0,0.00021,2]
[423703913,1780318247000,-421.0,0.00021,2]
[423703917,1780318247000,-152.0,0.00021,2]
[423703939,1780318247000,-496.0,0.0002137,2]
[423703926,1780318247000,-496.0,0.0002137,2]
[423703919,1780318247000,-805.0,0.00021095,2]
[423703923,1780318247000,-496.0,0.0002137,2]
[423703922,1780318247000,-300.0,0.00021369,2]
[423703921,1780318247000,-241.18,0.00021205,2]
[423703925,1780318247000,-496.0,0.0002137,2]
[423703924,1780318247000,-496.0,0.0002137,2]
[423703929,1780318247000,-496.0,0.0002137,2]
[423703928,1780318247000,-496.0,0.0002137,2]
[423703930,1780318247000,-496.0,0.0002137,2]
[423703905,1780318247000,-15000.0,0.00021,2]
[423703920,1780318247000,-451.0,0.00021128,2]
[423703900,1780318247000,-451.0,0.00020867,2]
[423703880,1780318247000,-317.0,0.0002,2]
[423703898,1780318247000,-1100.02,0.000207,2]
[423703877,1780318247000,-1828.0,0.0002,2]
[423703878,1780318247000,-1755.0,0.0002,2]
[423703879,1780318247000,-421.0,0.0002,2]
[423703935,1780318247000,-496.0,0.0002137,2]
[423703883,1780318247000,-533.0,0.0002,2]
[423703882,1780318247000,-1934.0,0.0002,2]
[423703881,1780318247000,-399.43398371,0.0002,30]
[423703884,1780318247000,-400.0,0.0002,2]
[423703888,1780318247000,-831.0,0.0002,2]
[423703886,1780318247000,-200.0,0.0002,10]
[423703895,1780318247000,-270.13475721,0.000204,2]
[423703887,1780318247000,-3439.0,0.0002,2]
[423703890,1780318247000,-300.0,0.000201,10]
[423703893,1780318247000,-1346.3,0.00020381,2]
[423703891,1780318247000,-270.13475721,0.000202,2]
[423703885,1780318247000,-152.0,0.0002,2]
[423703889,1780318247000,-1059.0,0.0002,2]
[423703892,1780318247000,-805.0,0.00020273,2]
[423703897,1780318247000,-2688.60698181,0.000207,2]
[423703896,1780318247000,-270.13475721,0.000206,2]
[423703902,1780318247000,-300.0,0.00020999,2]
[423703904,1780318247000,-6111.0,0.00021,2]
[423703906,1780318247000,-6111.0,0.00021,2]
[423703903,1780318247000,-15000.0,0.00021,2]
[423703899,1780318247000,-270.13475721,0.000208,2]
[423703901,1780318247000,-497.63538651,0.000209,2]
[423703937,1780318247000,-496.0,0.0002137,2]
[423703927,1780318247000,-496.0,0.0002137,2]
[423703932,1780318247000,-496.0,0.0002137,2]
[423703960,1780318247000,-500.0,0.0002137,2]
[423703966,1780318247000,-500.0,0.0002137,2]
[423703974,1780318247000,-873.0,0.0002137,2]
[423703967,1780318247000,-496.0,0.0002137,2]
[423703971,1780318247000,-500.0,0.0002137,2]
[423703970,1780318247000,-500.0,0.0002137,2]
[423703969,1780318247000,-500.0,0.0002137,2]
[423703968,1780318247000,-500.0,0.0002137,2]
[423703972,1780318247000,-873.0,0.0002137,2]
[423703976,1780318247000,-873.0,0.0002137,2]
[423703977,1780318247000,-873.0,0.0002137,2]
[423703975,1780318247000,-873.0,0.0002137,2]
[423703979,1780318247000,-873.0,0.0002137,2]
[423703978,1780318247000,-873.0,0.0002137,2]
[423703985,1780318247000,-873.0,0.0002137,2]
[423703982,1780318247000,-873.0,0.0002137,2]
[423703981,1780318247000,-496.0,0.0002137,2]
[423703988,1780318247000,-873.0,0.0002137,2]
[423703983,1780318247000,-873.0,0.0002137,2]
[423703984,1780318247000,-873.0,0.0002137,2]
[423703987,1780318247000,-873.0,0.0002137,2]
[423703980,1780318247000,-873.0,0.0002137,2]
[423703986,1780318247000,-873.0,0.0002137,2]
[423703989,1780318247000,-873.0,0.0002137,2]
[423703936,1780318247000,-496.0,0.0002137,2]
[423703956,1780318247000,-500.0,0.0002137,2]
[423703958,1780318247000,-500.0,0.0002137,2]
[423703973,1780318247000,-512.62058182,0.0002137,2]
[423703959,1780318247000,-500.0,0.0002137,2]
[423703965,1780318247000,-179.15137862,0.0002137,2]
[423703938,1780318247000,-500.0,0.0002137,2]
[423703941,1780318247000,-500.0,0.0002137,2]
[423703934,1780318247000,-496.0,0.0002137,2]
[423703933,1780318247000,-496.0,0.0002137,2]
[423703940,1780318247000,-500.0,0.0002137,2]
[423703950,1780318247000,-500.0,0.0002137,2]
[423703942,1780318247000,-496.0,0.0002137,2]
[423703952,1780318247000,-500.0,0.0002137,2]
[423703943,1780318247000,-361.53277954,0.0002137,2]
[423703951,1780318247000,-496.0,0.0002137,2]
[423703944,1780318247000,-496.0,0.0002137,2]
[423703945,1780318247000,-496.0,0.0002137,2]
[423703931,1780318247000,-496.0,0.0002137,2]
[423703957,1780318247000,-500.0,0.0002137,2]
[423703946,1780318247000,-500.0,0.0002137,2]
[423703962,1780318247000,-500.0,0.0002137,2]
[423703955,1780318247000,-500.0,0.0002137,2]
[423703963,1780318247000,-500.0,0.0002137,2]
[423703961,1780318247000,-500.0,0.0002137,2]
[423703964,1780318247000,-500.0,0.0002137,2]
[423703953,1780318247000,-184.20302166,0.0002137,2]
[423703949,1780318247000,-150.0,0.0002137,2]
[423703948,1780318247000,-500.0,0.0002137,2]
[423703947,1780318247000,-150.0,0.0002137,2]
[423703954,1780318247000,-500.0,0.0002137,2]
[423704028,1780318248000,-500.0,0.0002137,2]
[423704027,1780318248000,-793.0,0.0002137,2]
[423704026,1780318248000,-1080.0,0.0002137,2]
[423704023,1780318248000,-500.0,0.0002137,2]
[423704029,1780318248000,-1080.0,0.0002137,2]
[423704016,1780318248000,-793.0,0.0002137,2]
[423704021,1780318248000,-338.00061309,0.0002137,2]
[423704031,1780318248000,-793.0,0.0002137,2]
[423704022,1780318248000,-793.0,0.0002137,2]
[423704030,1780318248000,-500.0,0.0002137,2]
[423704020,1780318248000,-1080.0,0.0002137,2]
[423704024,1780318248000,-1080.0,0.0002137,2]
[423704025,1780318248000,-500.0,0.0002137,2]
[423704035,1780318248000,-1080.0,0.0002137,2]
[423704034,1780318248000,-793.0,0.0002137,2]
[423704041,1780318248000,-1080.0,0.0002137,2]
[423704039,1780318248000,-793.0,0.0002137,2]
[423704033,1780318248000,-500.0,0.0002137,2]
[423704038,1780318248000,-1080.0,0.0002137,2]
[423704042,1780318248000,-793.0,0.0002137,2]
[423704036,1780318248000,-793.0,0.0002137,2]
[423704037,1780318248000,-500.0,0.0002137,2]
[423704040,1780318248000,-500.0,0.0002137,2]
[423704043,1780318248000,-400.0082348,0.0002137,2]
[423704055,1780318248000,-1080.0,0.0002137,2]
[423704045,1780318248000,-1080.0,0.0002137,2]
[423704032,1780318248000,-1080.0,0.0002137,2]
[423704014,1780318248000,-793.0,0.0002137,2]
[423703992,1780318248000,-873.0,0.0002137,2]
[423704017,1780318248000,-1080.0,0.0002137,2]
[423704044,1780318248000,-1080.0,0.0002137,2]
[423703991,1780318248000,-500.0,0.0002137,2]
[423703990,1780318248000,-500.0,0.0002137,2]
[423703998,1780318248000,-500.0,0.0002137,2]
[423703996,1780318248000,-500.0,0.0002137,2]
[423703994,1780318248000,-500.0,0.0002137,2]
[423703993,1780318248000,-500.0,0.0002137,2]
[423703995,1780318248000,-500.0,0.0002137,2]
[423703997,1780318248000,-496.0,0.0002137,2]
[423704000,1780318248000,-534.04255896,0.0002137,2]
[423704001,1780318248000,-873.0,0.0002137,2]
[423704008,1780318248000,-873.0,0.0002137,2]
[423704018,1780318248000,-500.0,0.0002137,2]
[423704007,1780318248000,-873.0,0.0002137,2]
[423704006,1780318248000,-497.94856175,0.0002137,2]
[423704005,1780318248000,-873.0,0.0002137,2]
[423704002,1780318248000,-150.0,0.0002137,2]
[423704003,1780318248000,-150.0,0.0002137,2]
[423704004,1780318248000,-193.97666921,0.0002137,2]
[423704009,1780318248000,-873.0,0.0002137,2]
[423704010,1780318248000,-876.85748912,0.0002137,2]
[423704011,1780318248000,-500.0,0.0002137,2]
[423704012,1780318248000,-500.0,0.0002137,2]
[423704013,1780318248000,-500.0,0.0002137,2]
[423704015,1780318248000,-500.0,0.0002137,2]
[423704019,1780318248000,-793.0,0.0002137,2]
[423703999,1780318248000,-873.0,0.0002137,2]
[423704049,1780318248000,-1080.0,0.0002137,2]
[423704071,1780318248000,-500.0,0.0002137,2]
[423704047,1780318248000,-1080.0,0.0002137,2]
[423704073,1780318248000,-500.0,0.0002137,2]
[423704072,1780318248000,-500.0,0.0002137,2]
[423704093,1780318248000,-500.0,0.0002137,2]
[423704083,1780318248000,-1080.0,0.0002137,2]
[423704082,1780318248000,-793.0,0.0002137,2]
[423704087,1780318248000,-802.86310537,0.0002137,2]
[423704094,1780318248000,-500.0,0.0002137,2]
[423704090,1780318248000,-150.0,0.0002137,2]
[423704086,1780318248000,-793.0,0.0002137,2]
[423704085,1780318248000,-1100.76690432,0.0002137,2]
[423704091,1780318248000,-278.88036096,0.0002137,2]
[423704084,1780318248000,-793.0,0.0002137,2]
[423704077,1780318248000,-793.0,0.0002137,2]
[423704089,1780318248000,-502.83414164,0.0002137,2]
[423704095,1780318248000,-500.0,0.0002137,2]
[423704097,1780318248000,-500.0,0.0002137,2]
[423704096,1780318248000,-500.0,0.0002137,2]
[423704098,1780318248000,-500.0,0.0002137,2]
[423704099,1780318248000,-500.0,0.0002137,2]
[423704100,1780318248000,-446.0,0.0002137,2]
[423704101,1780318248000,-500.0,0.0002137,2]
[423704102,1780318248000,-500.0,0.0002137,2]
[423704104,1780318248000,-500.0,0.0002137,2]
[423704105,1780318248000,-500.0,0.0002137,2]
[423704106,1780318248000,-446.0,0.0002137,2]
[423704051,1780318248000,-1080.0,0.0002137,2]
[423704092,1780318248000,-500.0,0.0002137,2]
[423704081,1780318248000,-1080.0,0.0002137,2]
[423704088,1780318248000,-500.0,0.0002137,2]
[423704078,1780318248000,-500.0,0.0002137,2]
[423704074,1780318248000,-500.0,0.0002137,2]
[423704050,1780318248000,-793.0,0.0002137,2]
[423704048,1780318248000,-793.0,0.0002137,2]
[423704053,1780318248000,-793.0,0.0002137,2]
[423704046,1780318248000,-793.0,0.0002137,2]
[423704052,1780318248000,-1080.0,0.0002137,2]
[423704054,1780318248000,-500.0,0.0002137,2]
[423704057,1780318248000,-793.0,0.0002137,2]
[423704066,1780318248000,-500.0,0.0002137,2]
[423704058,1780318248000,-1080.0,0.0002137,2]
[423704056,1780318248000,-500.0,0.0002137,2]
[423704059,1780318248000,-793.0,0.0002137,2]
[423704060,1780318248000,-500.0,0.0002137,2]
[423704065,1780318248000,-500.0,0.0002137,2]
[423704076,1780318248000,-1080.0,0.0002137,2]
[423704080,1780318248000,-793.0,0.0002137,2]
[423704067,1780318248000,-500.0,0.0002137,2]
[423704075,1780318248000,-500.0,0.0002137,2]
[423704103,1780318248000,-446.0,0.0002137,2]
[423704079,1780318248000,-1080.0,0.0002137,2]
[423704070,1780318248000,-793.0,0.0002137,2]
[423704069,1780318248000,-500.0,0.0002137,2]
[423704062,1780318248000,-1080.0,0.0002137,2]
[423704064,1780318248000,-793.0,0.0002137,2]
[423704061,1780318248000,-500.0,0.0002137,2]
[423704068,1780318248000,-1080.0,0.0002137,2]
[423704063,1780318248000,-500.0,0.0002137,2]
[423704143,1780318249000,-446.0,0.0002137,2]
[423704149,1780318249000,-446.0,0.0002137,2]
[423704148,1780318249000,-446.0,0.0002137,2]
[423704146,1780318249000,-446.0,0.0002137,2]
[423704140,1780318249000,-408.67132594,0.0002137,2]
[423704134,1780318249000,-210.60640966,0.0002137,2]
[423704144,1780318249000,-446.0,0.0002137,2]
[423704142,1780318249000,-446.0,0.0002137,2]
[423704139,1780318249000,-446.0,0.0002137,2]
[423704137,1780318249000,-446.0,0.0002137,2]
[423704150,1780318249000,-460.0,0.0002137,2]
[423704141,1780318249000,-446.0,0.0002137,2]
[423704153,1780318249000,-1332.0,0.0002137,2]
[423704161,1780318249000,-1332.0,0.0002137,2]
[423704147,1780318249000,-446.0,0.0002137,2]
[423704152,1780318249000,-1332.0,0.0002137,2]
[423704151,1780318249000,-1332.0,0.0002137,2]
[423704155,1780318249000,-501.0,0.0002137,2]
[423704156,1780318249000,-1332.0,0.0002137,2]
[423704160,1780318249000,-1332.0,0.0002137,2]
[423704158,1780318249000,-1332.0,0.0002137,2]
[423704157,1780318249000,-501.0,0.0002137,2]
[423704159,1780318249000,-501.0,0.0002137,2]
[423704162,1780318249000,-1332.0,0.0002137,2]
[423704163,1780318249000,-1332.0,0.0002137,2]
[423704164,1780318249000,-500.0,0.0002137,2]
[423704145,1780318249000,-446.0,0.0002137,2]
[423704154,1780318249000,-1332.0,0.0002137,2]
[423704138,1780318249000,-500.0,0.0002137,2]
[423704108,1780318249000,-500.0,0.0002137,2]
[423704135,1780318249000,-446.0,0.0002137,2]
[423704165,1780318249000,-500.0,0.0002137,2]
[423704114,1780318249000,-500.0,0.0002137,2]
[423704119,1780318249000,-500.0,0.0002137,2]
[423704111,1780318249000,-500.0,0.0002137,2]
[423704113,1780318249000,-446.0,0.0002137,2]
[423704112,1780318249000,-500.0,0.0002137,2]
[423704110,1780318249000,-500.0,0.0002137,2]
[423704109,1780318249000,-446.0,0.0002137,2]
[423704118,1780318249000,-446.0,0.0002137,2]
[423704115,1780318249000,-500.0,0.0002137,2]
[423704117,1780318249000,-245.69706371,0.0002137,2]
[423704116,1780318249000,-500.0,0.0002137,2]
[423704107,1780318249000,-500.0,0.0002137,2]
[423704120,1780318249000,-500.0,0.0002137,2]
[423704122,1780318249000,-446.0,0.0002137,2]
[423704132,1780318249000,-500.0,0.0002137,2]
[423704131,1780318249000,-500.0,0.0002137,2]
[423704124,1780318249000,-162.97877955,0.0002137,2]
[423704121,1780318249000,-446.0,0.0002137,2]
[423704123,1780318249000,-500.0,0.0002137,2]
[423704133,1780318249000,-500.0,0.0002137,2]
[423704127,1780318249000,-446.0,0.0002137,2]
[423704125,1780318249000,-446.0,0.0002137,2]
[423704130,1780318249000,-446.0,0.0002137,2]
[423704128,1780318249000,-500.0,0.0002137,2]
[423704126,1780318249000,-500.0,0.0002137,2]
[423704129,1780318249000,-500.0,0.0002137,2]
[423704136,1780318249000,-500.0,0.0002137,2]
[423704168,1780318249000,-500.0,0.0002137,2]
[423704169,1780318249000,-1332.0,0.0002137,2]
[423704166,1780318249000,-1332.0,0.0002137,2]
[423704191,1780318249000,-501.0,0.0002137,2]
[423704202,1780318249000,-520.33389924,0.0002137,2]
[423704199,1780318249000,-1332.0,0.0002137,2]
[423704215,1780318249000,-500.0,0.0002137,2]
[423704216,1780318249000,-500.0,0.0002137,2]
[423704205,1780318249000,-500.0,0.0002137,2]
[423704204,1780318249000,-500.0,0.0002137,2]
[423704206,1780318249000,-500.0,0.0002137,2]
[423704207,1780318249000,-500.0,0.0002137,2]
[423704210,1780318249000,-500.0,0.0002137,2]
[423704213,1780318249000,-500.0,0.0002137,2]
[423704211,1780318249000,-500.0,0.0002137,2]
[423704208,1780318249000,-500.0,0.0002137,2]
[423704197,1780318249000,-1332.0,0.0002137,2]
[423704214,1780318249000,-411.08460741,0.0002137,2]
[423704212,1780318249000,-500.0,0.0002137,2]
[423704217,1780318249000,-500.0,0.0002137,2]
[423704218,1780318249000,-150.0,0.0002137,2]
[423704220,1780318249000,-500.0,0.0002137,2]
[423704221,1780318249000,-150.0,0.0002137,2]
[423704222,1780318249000,-500.0,0.0002137,2]
[423704219,1780318249000,-500.0,0.0002137,2]
[423704167,1780318249000,-501.0,0.0002137,2]
[423704226,1780318249000,-200.0,0.0002137,2]
[423704224,1780318249000,-362.24079347,0.0002137,2]
[423704225,1780318249000,-390.08039902,0.0002137,2]
[423704223,1780318249000,-500.0,0.0002137,2]
[423704227,1780318249000,-150.0,0.0002137,2]
[423704209,1780318249000,-500.0,0.0002137,2]
[423704198,1780318249000,-501.0,0.0002137,2]
[423704228,1780318249000,-451.0,0.00021388,2]
[423704200,1780318249000,-501.0,0.0002137,2]
[423704203,1780318249000,-500.0,0.0002137,2]
[423704176,1780318249000,-501.0,0.0002137,2]
[423704170,1780318249000,-500.0,0.0002137,2]
[423704172,1780318249000,-1332.0,0.0002137,2]
[423704171,1780318249000,-501.0,0.0002137,2]
[423704175,1780318249000,-1332.0,0.0002137,2]
[423704174,1780318249000,-501.0,0.0002137,2]
[423704178,1780318249000,-501.0,0.0002137,2]
[423704188,1780318249000,-501.0,0.0002137,2]
[423704177,1780318249000,-1332.0,0.0002137,2]
[423704189,1780318249000,-501.0,0.0002137,2]
[423704180,1780318249000,-501.0,0.0002137,2]
[423704179,1780318249000,-501.0,0.0002137,2]
[423704173,1780318249000,-1332.0,0.0002137,2]
[423704181,1780318249000,-1332.0,0.0002137,2]
[423704185,1780318249000,-501.0,0.0002137,2]
[423704201,1780318249000,-1349.45177235,0.0002137,2]
[423704195,1780318249000,-1332.0,0.0002137,2]
[423704192,1780318249000,-1332.0,0.0002137,2]
[423704194,1780318249000,-501.0,0.0002137,2]
[423704193,1780318249000,-501.0,0.0002137,2]
[423704196,1780318249000,-501.0,0.0002137,2]
[423704183,1780318249000,-501.0,0.0002137,2]
[423704187,1780318249000,-501.0,0.0002137,2]
[423704182,1780318249000,-501.0,0.0002137,2]
[423704184,1780318249000,-1332.0,0.0002137,2]
[423704186,1780318249000,-501.0,0.0002137,2]
[423704190,1780318249000,-1332.0,0.0002137,2]
[423704267,1780318250000,-1346.3,0.00022353,2]
[423704262,1780318250000,-528.18666344,0.000221,7]
[423704260,1780318250000,-150.0,0.00022039,2]
[423704256,1780318250000,-929.0,0.00022039,2]
[423704263,1780318250000,-308.24,0.000222,2]
[423704257,1780318250000,-3551.0,0.00022039,2]
[423704265,1780318250000,-200.0,0.00022202,2]
[423704266,1780318250000,-200.0,0.00022271,2]
[423704259,1780318250000,-1273.0,0.00022039,2]
[423704258,1780318250000,-1226.0,0.00022039,2]
[423704270,1780318250000,-1814.02,0.00022466,2]
[423704261,1780318250000,-150.0,0.00022039,2]
[423704268,1780318250000,-1663.93,0.00022466,2]
[423704273,1780318250000,-1924.72,0.00022691,2]
[423704272,1780318250000,-1100.02,0.000225,7]
[423704276,1780318250000,-16865.34,0.00022691,2]
[423704275,1780318250000,-1428.04,0.00022691,2]
[423704271,1780318250000,-10275.72267183,0.000225,2]
[423704274,1780318250000,-741.83,0.00022691,2]
[423704278,1780318250000,-158.87249016,0.00022876,27]
[423704255,1780318250000,-743.69,0.00022,2]
[423704264,1780318250000,-798.07,0.000222,14]
[423704252,1780318250000,-533.0,0.00022,2]
[423704235,1780318250000,-451.0,0.00021649,2]
[423704254,1780318250000,-152.0,0.00022,2]
[423704277,1780318250000,-805.0,0.00022739,2]
[423704229,1780318250000,-300.0,0.0002146,2]
[423704231,1780318250000,-152.76153938,0.000215,22]
[423704242,1780318250000,-175.94193982,0.00021918,2]
[423704234,1780318250000,-18291.00150325,0.000215,2]
[423704239,1780318250000,-1006.96,0.00021918,2]
[423704240,1780318250000,-5000.0,0.00021918,2]
[423704230,1780318250000,-388880.9110387,0.00021461,2]
[423704233,1780318250000,-157.20781071,0.000215,22]
[423704241,1780318250000,-159.802168,0.00021918,2]
[423704237,1780318250000,-451.01823754,0.0002191,2]
[423704232,1780318250000,-157.20781071,0.000215,22]
[423704238,1780318250000,-805.0,0.00021917,2]
[423704236,1780318250000,-507.40807909,0.00021774,7]